[Event "*** SCC Grand Prix: Titled Tuesday Blitz"]
[Site "Chess.com"]
[Date "2020.07.14"]
[Round "10"]
[White "Tonychess32"]
[Black "MustafayevFarid2004"]
[Result "0-1"]
[WhiteElo "2631"]
[BlackElo "2404"]
[TimeControl "180+1"]
[EndTime "11:57:31 PDT"]
[Termination "MustafayevFarid2004 won by resignation"]

1. e4 {[%clk 0:03:00.9]} 1... c6 {[%clk 0:02:59.4]} 2. d4 {[%clk 0:02:59.9]}
2... d5 {[%clk 0:02:59.7]} 3. e5 {[%clk 0:03:00.5]} 3... Bf5 {[%clk 0:02:59.3]}
4. Nc3 {[%clk 0:03:01]} 4... Qb6 {[%clk 0:02:58.1]} 5. g4 {[%clk 0:02:53.4]}
5... Bd7 {[%clk 0:02:57.8]} 6. h3 {[%clk 0:02:31.4]} 6... e6 {[%clk 0:02:56.6]}
7. Nge2 {[%clk 0:02:20.3]} 7... c5 {[%clk 0:02:55]} 8. Be3 {[%clk 0:02:16.7]}
8... Nc6 {[%clk 0:02:50]} 9. f4 {[%clk 0:02:11.4]} 9... h5 {[%clk 0:02:45.7]}
10. Bg2 {[%clk 0:01:56.6]} 10... Nh6 {[%clk 0:02:44.8]} 11. dxc5 {[%clk
0:01:49.4]} 11... Bxc5 {[%clk 0:02:45.7]} 12. Bxc5 {[%clk 0:01:49.4]} 12... Qxc5
{[%clk 0:02:45.6]} 13. Qd2 {[%clk 0:01:35.8]} 13... Rc8 {[%clk 0:02:36.8]} 14.
O-O-O {[%clk 0:01:33.9]} 14... O-O {[%clk 0:02:27.5]} 15. Bf3 {[%clk 0:01:33.6]}
15... Rfd8 {[%clk 0:02:18.4]} 16. g5 {[%clk 0:01:24]} 16... Nf5 {[%clk
0:02:17.3]} 17. Bxh5 {[%clk 0:01:24.4]} 17... Be8 {[%clk 0:02:17.2]} 18. g6
{[%clk 0:01:21.2]} 18... fxg6 {[%clk 0:02:12.1]} 19. Bg4 {[%clk 0:01:20]} 19...
Na5 {[%clk 0:02:03.9]} 20. Bxf5 {[%clk 0:01:09.4]} 20... gxf5 {[%clk 0:02:03.9]}
21. Nd4 {[%clk 0:01:07.5]} 21... Nc4 {[%clk 0:02:04.5]} 22. Qd3 {[%clk
0:00:50.9]} 22... Qb4 {[%clk 0:02:02.5]} 23. Nb3 {[%clk 0:00:41.6]} 23... a5
{[%clk 0:02:02.5]} 24. Rhg1 {[%clk 0:00:33]} 24... a4 {[%clk 0:01:56.2]} 25. Qg3
{[%clk 0:00:29.2]} 25... Rc7 {[%clk 0:01:54.7]} 26. a3 {[%clk 0:00:29]} 26...
Nxa3 {[%clk 0:01:53.3]} 27. bxa3 {[%clk 0:00:26.3]} 27... Qxa3+ {[%clk
0:01:53.3]} 28. Kd2 {[%clk 0:00:26.4]} 28... axb3 {[%clk 0:01:53.3]} 29. Qh4
{[%clk 0:00:16.4]} 29... bxc2 {[%clk 0:01:38.1]} 30. Rxg7+ {[%clk 0:00:11.8]}
30... Rxg7 {[%clk 0:01:39]} 31. Kxc2 {[%clk 0:00:06.1]} 31... Rc8 {[%clk
0:01:29.1]} 32. Rd3 {[%clk 0:00:05]} 32... Rg2+ {[%clk 0:01:13.3]} 33. Kd1
{[%clk 0:00:05.1]} 33... Qa1+ {[%clk 0:01:11.6]} 0-1

[Event "*** SCC Grand Prix: Titled Tuesday Blitz"]
[Site "Chess.com"]
[Date "2020.07.14"]
[Round "10"]
[White "Sjakkerntobi"]
[Black "rpragchess"]
[Result "0-1"]
[WhiteElo "2421"]
[BlackElo "2821"]
[TimeControl "180+1"]
[EndTime "11:57:36 PDT"]
[Termination "rpragchess won by resignation"]

1. e4 {[%clk 0:03:00.9]} 1... c5 {[%clk 0:02:57.4]} 2. Nf3 {[%clk 0:03:00.9]}
2... e6 {[%clk 0:02:57.9]} 3. d4 {[%clk 0:03:01.3]} 3... cxd4 {[%clk 0:02:58.8]}
4. Nxd4 {[%clk 0:03:02.2]} 4... a6 {[%clk 0:02:59.4]} 5. c4 {[%clk 0:03:02.6]}
5... Nf6 {[%clk 0:02:59.2]} 6. Nc3 {[%clk 0:03:02.6]} 6... Qc7 {[%clk
0:02:59.8]} 7. Qd3 {[%clk 0:03:02.2]} 7... Nc6 {[%clk 0:02:52.8]} 8. Be2 {[%clk
0:02:52.1]} 8... b6 {[%clk 0:02:45.2]} 9. O-O {[%clk 0:02:45.1]} 9... Bb7 {[%clk
0:02:43.9]} 10. f4 {[%clk 0:02:45]} 10... Nxd4 {[%clk 0:02:43.1]} 11. Be3 {[%clk
0:02:28.4]} 11... Nxe2+ {[%clk 0:02:39.8]} 12. Qxe2 {[%clk 0:02:29.3]} 12... d6
{[%clk 0:02:27.5]} 13. Bd4 {[%clk 0:02:26.4]} 13... e5 {[%clk 0:02:22.8]} 14.
Be3 {[%clk 0:02:25.3]} 14... Be7 {[%clk 0:02:21.6]} 15. Rae1 {[%clk 0:02:10.8]}
15... Rc8 {[%clk 0:02:16.2]} 16. b3 {[%clk 0:02:10.3]} 16... b5 {[%clk
0:02:12.8]} 17. fxe5 {[%clk 0:02:05.8]} 17... dxe5 {[%clk 0:02:12.1]} 18. Nd5
{[%clk 0:02:01.4]} 18... Bxd5 {[%clk 0:02:12]} 19. cxd5 {[%clk 0:01:59.8]} 19...
O-O {[%clk 0:02:04.6]} 20. Qf3 {[%clk 0:01:57.9]} 20... Qd7 {[%clk 0:02:01]} 21.
h3 {[%clk 0:01:57.8]} 21... Ne8 {[%clk 0:01:55.7]} 22. g4 {[%clk 0:01:57]} 22...
Bc5 {[%clk 0:01:53.9]} 23. Qg3 {[%clk 0:01:52.1]} 23... Nd6 {[%clk 0:01:50.9]}
24. Bxc5 {[%clk 0:01:47.1]} 24... Rxc5 {[%clk 0:01:51.8]} 25. h4 {[%clk
0:01:48]} 25... Rc2 {[%clk 0:01:49.8]} 26. g5 {[%clk 0:01:44.3]} 26... Rfc8
{[%clk 0:01:48.7]} 27. h5 {[%clk 0:01:42.3]} 27... R8c3 {[%clk 0:01:44.8]} 28.
Rf3 {[%clk 0:01:40.5]} 28... Qa7+ {[%clk 0:01:33.6]} 29. Kf1 {[%clk 0:01:30.5]}
29... Qd4 {[%clk 0:01:27.8]} 30. g6 {[%clk 0:01:16.1]} 30... hxg6 {[%clk
0:01:17.9]} 31. hxg6 {[%clk 0:01:16]} 31... fxg6 {[%clk 0:01:17.6]} 32. Qg4
{[%clk 0:01:09.1]} 32... Rxf3+ {[%clk 0:01:15.3]} 33. Qxf3 {[%clk 0:01:09.5]}
33... Qd2 {[%clk 0:01:15.3]} 34. a4 {[%clk 0:00:50.2]} 34... Qh2 {[%clk
0:01:12.3]} 35. axb5 {[%clk 0:00:45.9]} 35... axb5 {[%clk 0:01:06.6]} 36. Ra1
{[%clk 0:00:40.9]} 36... Nxe4 {[%clk 0:01:04.6]} 37. Rd1 {[%clk 0:00:24.2]}
37... Rf2+ {[%clk 0:01:02.8]} 0-1

[Event "*** SCC Grand Prix: Titled Tuesday Blitz"]
[Site "Chess.com"]
[Date "2020.07.14"]
[Round "10"]
[White "Batsai"]
[Black "diamonds13"]
[Result "0-1"]
[WhiteElo "2366"]
[BlackElo "2258"]
[TimeControl "180+1"]
[EndTime "11:57:36 PDT"]
[Termination "diamonds13 won on time"]

1. d4 {[%clk 0:02:50]} 1... Nf6 {[%clk 0:02:58.8]} 2. c4 {[%clk 0:02:50.3]} 2...
e6 {[%clk 0:02:58.4]} 3. Nc3 {[%clk 0:02:50.6]} 3... Bb4 {[%clk 0:02:56.4]} 4.
f3 {[%clk 0:02:50]} 4... c5 {[%clk 0:02:54.9]} 5. d5 {[%clk 0:02:49.2]} 5...
exd5 {[%clk 0:02:54]} 6. cxd5 {[%clk 0:02:48.7]} 6... O-O {[%clk 0:02:54.6]} 7.
e4 {[%clk 0:02:48.3]} 7... d6 {[%clk 0:02:54.2]} 8. Bd3 {[%clk 0:02:42.8]} 8...
c4 {[%clk 0:02:51.9]} 9. Bc2 {[%clk 0:02:37.9]} 9... b5 {[%clk 0:02:49.2]} 10.
Ne2 {[%clk 0:02:34.8]} 10... a6 {[%clk 0:02:41.5]} 11. O-O {[%clk 0:02:30.9]}
11... Bc5+ {[%clk 0:02:40.2]} 12. Kh1 {[%clk 0:02:28.1]} 12... Nh5 {[%clk
0:02:39.3]} 13. Qe1 {[%clk 0:02:14.2]} 13... Qf6 {[%clk 0:02:36.6]} 14. Rb1
{[%clk 0:02:01.7]} 14... g5 {[%clk 0:02:30.5]} 15. b4 {[%clk 0:01:56.2]} 15...
Bb6 {[%clk 0:02:28.7]} 16. Bb2 {[%clk 0:01:52.3]} 16... Qh6 {[%clk 0:02:26.9]}
17. a4 {[%clk 0:01:39.5]} 17... Nd7 {[%clk 0:02:22.8]} 18. a5 {[%clk 0:01:36.4]}
18... Ba7 {[%clk 0:02:22.3]} 19. Nd1 {[%clk 0:01:29.5]} 19... Ne5 {[%clk
0:02:18.1]} 20. Nf2 {[%clk 0:01:15.3]} 20... f5 {[%clk 0:02:10.8]} 21. Kg1
{[%clk 0:01:00.2]} 21... f4 {[%clk 0:02:07.2]} 22. Bd4 {[%clk 0:00:53.6]} 22...
Bxd4 {[%clk 0:01:48.3]} 23. Nxd4 {[%clk 0:00:54.5]} 23... Ng3 {[%clk 0:01:45.7]}
24. h3 {[%clk 0:00:45.9]} 24... Bd7 {[%clk 0:01:37.6]} 25. Qc3 {[%clk
0:00:37.3]} 25... Qg6 {[%clk 0:01:36.3]} 26. Rfd1 {[%clk 0:00:32.1]} 26... h5
{[%clk 0:01:35.7]} 27. Ne6 {[%clk 0:00:23.8]} 27... Rf7 {[%clk 0:01:31.7]} 28.
Nc5 {[%clk 0:00:12.4]} 28... Rh7 {[%clk 0:01:25.9]} 29. Nb7 {[%clk 0:00:05.8]}
29... g4 {[%clk 0:01:22.2]} 30. fxg4 {[%clk 0:00:04.8]} 30... hxg4 {[%clk
0:01:21.4]} 31. hxg4 {[%clk 0:00:03]} 31... Bxg4 {[%clk 0:01:13.8]} 0-1

[Event "*** SCC Grand Prix: Titled Tuesday Blitz"]
[Site "Chess.com"]
[Date "2020.07.14"]
[Round "10"]
[White "maestroza"]
[Black "qingaunlee"]
[Result "1/2-1/2"]
[WhiteElo "2496"]
[BlackElo "2359"]
[TimeControl "180+1"]
[EndTime "11:57:38 PDT"]
[Termination "Game drawn by repetition"]

1. d4 {[%clk 0:03:00.9]} 1... Nf6 {[%clk 0:02:59.3]} 2. Nf3 {[%clk 0:03:01.1]}
2... e6 {[%clk 0:02:59.5]} 3. e3 {[%clk 0:03:00.7]} 3... c5 {[%clk 0:02:58.5]}
4. Bd3 {[%clk 0:03:01]} 4... Nc6 {[%clk 0:02:58.1]} 5. O-O {[%clk 0:03:00.7]}
5... d5 {[%clk 0:02:57.8]} 6. b3 {[%clk 0:03:00.8]} 6... Bd6 {[%clk 0:02:57]} 7.
Bb2 {[%clk 0:03:00.7]} 7... O-O {[%clk 0:02:57.2]} 8. a3 {[%clk 0:03:00.9]} 8...
b6 {[%clk 0:02:56.7]} 9. Nbd2 {[%clk 0:02:58.9]} 9... Bb7 {[%clk 0:02:56.2]} 10.
Ne5 {[%clk 0:02:58.7]} 10... Ne7 {[%clk 0:02:33.9]} 11. f4 {[%clk 0:02:56.4]}
11... Ne4 {[%clk 0:02:31.7]} 12. Bxe4 {[%clk 0:02:43.1]} 12... dxe4 {[%clk
0:02:31.3]} 13. Ndc4 {[%clk 0:02:40.4]} 13... f6 {[%clk 0:02:22.7]} 14. Nxd6
{[%clk 0:02:36.5]} 14... Qxd6 {[%clk 0:02:23.6]} 15. Nc4 {[%clk 0:02:33.7]}
15... Qd5 {[%clk 0:02:23.3]} 16. dxc5 {[%clk 0:02:19]} 16... bxc5 {[%clk
0:02:22.1]} 17. Qg4 {[%clk 0:01:44]} 17... Nf5 {[%clk 0:01:53]} 18. Rad1 {[%clk
0:01:36]} 18... Qc6 {[%clk 0:01:52.4]} 19. Na5 {[%clk 0:01:04.3]} 19... Qc7
{[%clk 0:01:51.4]} 20. Nxb7 {[%clk 0:01:03.5]} 20... Qxb7 {[%clk 0:01:52.3]} 21.
Qe2 {[%clk 0:01:00.4]} 21... Rfd8 {[%clk 0:01:48.8]} 22. Bc1 {[%clk 0:00:56.3]}
22... Rd5 {[%clk 0:01:44.2]} 23. Qc4 {[%clk 0:00:52.5]} 23... Rad8 {[%clk
0:01:43.2]} 24. Qxe4 {[%clk 0:00:52.5]} 24... Qa6 {[%clk 0:01:23.6]} 25. Rxd5
{[%clk 0:00:47.3]} 25... Rxd5 {[%clk 0:01:23]} 26. c4 {[%clk 0:00:47.2]} 26...
Rd8 {[%clk 0:01:20.7]} 27. Qc2 {[%clk 0:00:45.5]} 27... Qd6 {[%clk 0:01:16.3]}
28. Qe4 {[%clk 0:00:38.1]} 28... Kf7 {[%clk 0:01:14]} 29. Kf2 {[%clk 0:00:20.7]}
29... Rb8 {[%clk 0:01:05.3]} 30. Qc2 {[%clk 0:00:20.1]} 30... Rd8 {[%clk
0:00:59.9]} 31. Ke2 {[%clk 0:00:19.9]} 31... Qc6 {[%clk 0:00:57.9]} 32. Kf2
{[%clk 0:00:20.2]} 32... Qd6 {[%clk 0:00:57.7]} 33. Ke2 {[%clk 0:00:20.1]} 33...
Qc6 {[%clk 0:00:57.4]} 34. Kf2 {[%clk 0:00:20.6]} 34... Qd6 {[%clk 0:00:54.6]}
1/2-1/2

[Event "*** SCC Grand Prix: Titled Tuesday Blitz"]
[Site "Chess.com"]
[Date "2020.07.14"]
[Round "10"]
[White "fabianvivasz"]
[Black "MashaFromRussia"]
[Result "1-0"]
[WhiteElo "2283"]
[BlackElo "2409"]
[TimeControl "180+1"]
[EndTime "11:57:41 PDT"]
[Termination "fabianvivasz won by resignation"]

1. e4 {[%clk 0:03:00.9]} 1... c5 {[%clk 0:02:59.9]} 2. Nf3 {[%clk 0:03:00.6]}
2... Nc6 {[%clk 0:03:00.2]} 3. d4 {[%clk 0:03:00.3]} 3... cxd4 {[%clk
0:03:01.1]} 4. Nxd4 {[%clk 0:03:01.2]} 4... Nf6 {[%clk 0:03:01.6]} 5. Nc3 {[%clk
0:03:00.7]} 5... e5 {[%clk 0:03:02]} 6. Ndb5 {[%clk 0:03:00.6]} 6... d6 {[%clk
0:03:02.4]} 7. Bg5 {[%clk 0:03:00]} 7... a6 {[%clk 0:03:02]} 8. Na3 {[%clk
0:03:00.4]} 8... b5 {[%clk 0:03:01.6]} 9. Bxf6 {[%clk 0:03:01]} 9... gxf6 {[%clk
0:03:01.4]} 10. Nd5 {[%clk 0:03:01.6]} 10... f5 {[%clk 0:03:01.8]} 11. g3 {[%clk
0:03:02.2]} 11... fxe4 {[%clk 0:03:00.7]} 12. Bg2 {[%clk 0:03:02.4]} 12... Bf5
{[%clk 0:03:00.7]} 13. c3 {[%clk 0:02:57]} 13... Bg7 {[%clk 0:03:00.4]} 14. Nc2
{[%clk 0:02:52.1]} 14... O-O {[%clk 0:03:00.4]} 15. g4 {[%clk 0:02:49.5]} 15...
Be6 {[%clk 0:02:57.7]} 16. Nce3 {[%clk 0:02:41.3]} 16... Qh4 {[%clk 0:02:42.9]}
17. Bxe4 {[%clk 0:02:28.8]} 17... Rad8 {[%clk 0:02:34.3]} 18. Qf3 {[%clk
0:01:55]} 18... Na5 {[%clk 0:02:27.3]} 19. O-O-O {[%clk 0:01:23.6]} 19... Nc4
{[%clk 0:02:25.9]} 20. Nf5 {[%clk 0:01:19.5]} 20... Bxf5 {[%clk 0:01:57.8]} 21.
Qxf5 {[%clk 0:01:20.4]} 21... b4 {[%clk 0:01:52]} 22. g5 {[%clk 0:00:59.7]}
22... bxc3 {[%clk 0:01:46.1]} 23. b3 {[%clk 0:00:50.4]} 23... Na5 {[%clk
0:01:35.2]} 24. Rd3 {[%clk 0:00:48.5]} 24... f6 {[%clk 0:01:21.6]} 25. Ne7+
{[%clk 0:00:13.6]} 25... Kh8 {[%clk 0:01:20.8]} 26. Rh3 {[%clk 0:00:12.8]} 26...
Qf4+ {[%clk 0:00:46.9]} 27. Qxf4 {[%clk 0:00:12.5]} 27... f5 {[%clk 0:00:47.5]}
28. Rxh7+ {[%clk 0:00:12.7]} 28... Kxh7 {[%clk 0:00:47.4]} 29. Qh4+ {[%clk
0:00:13]} 1-0

[Event "*** SCC Grand Prix: Titled Tuesday Blitz"]
[Site "Chess.com"]
[Date "2020.07.14"]
[Round "10"]
[White "Mr_Sinigami"]
[Black "carlesdc96"]
[Result "0-1"]
[WhiteElo "2574"]
[BlackElo "2726"]
[TimeControl "180+1"]
[EndTime "11:57:43 PDT"]
[Termination "carlesdc96 won on time"]

1. d4 {[%clk 0:03:00.9]} 1... Nf6 {[%clk 0:02:57.6]} 2. Nf3 {[%clk 0:03:00.8]}
2... b6 {[%clk 0:02:57.2]} 3. Bf4 {[%clk 0:03:00.3]} 3... Bb7 {[%clk 0:02:57.3]}
4. h3 {[%clk 0:02:59.3]} 4... e6 {[%clk 0:02:57.3]} 5. e3 {[%clk 0:02:59.2]}
5... c5 {[%clk 0:02:57.6]} 6. c3 {[%clk 0:02:58.5]} 6... Nc6 {[%clk 0:02:56.8]}
7. Be2 {[%clk 0:02:53]} 7... d5 {[%clk 0:02:56.4]} 8. Ne5 {[%clk 0:02:42.1]}
8... Nxe5 {[%clk 0:02:48.9]} 9. Bxe5 {[%clk 0:02:29.4]} 9... Nd7 {[%clk
0:02:48.8]} 10. Bg3 {[%clk 0:02:26.5]} 10... Be7 {[%clk 0:02:48.9]} 11. O-O
{[%clk 0:02:24.8]} 11... O-O {[%clk 0:02:49]} 12. a4 {[%clk 0:02:25.2]} 12...
Nf6 {[%clk 0:02:48.2]} 13. Nd2 {[%clk 0:02:14.7]} 13... Bd6 {[%clk 0:02:40]} 14.
Bh4 {[%clk 0:02:14.2]} 14... h6 {[%clk 0:02:39.1]} 15. f4 {[%clk 0:02:12.4]}
15... Be7 {[%clk 0:02:36.9]} 16. a5 {[%clk 0:02:05.8]} 16... Ne4 {[%clk
0:02:30.7]} 17. Bxe7 {[%clk 0:02:03.8]} 17... Qxe7 {[%clk 0:02:31.6]} 18. Nxe4
{[%clk 0:02:00.3]} 18... dxe4 {[%clk 0:02:32.5]} 19. Qe1 {[%clk 0:01:33.4]}
19... cxd4 {[%clk 0:02:26.3]} 20. exd4 {[%clk 0:01:32.8]} 20... f5 {[%clk
0:02:25.3]} 21. Bc4 {[%clk 0:01:01]} 21... Kh7 {[%clk 0:02:21.8]} 22. Qd1 {[%clk
0:00:58.8]} 22... Bd5 {[%clk 0:02:13.9]} 23. Qb3 {[%clk 0:00:56.6]} 23... Bxc4
{[%clk 0:02:11.9]} 24. Qxc4 {[%clk 0:00:56.5]} 24... Rfb8 {[%clk 0:02:09.6]} 25.
Rf2 {[%clk 0:00:23.4]} 25... b5 {[%clk 0:02:09]} 26. Qe2 {[%clk 0:00:16.9]}
26... Qd6 {[%clk 0:02:08.6]} 27. Qe3 {[%clk 0:00:16.2]} 27... Rc8 {[%clk
0:02:07.2]} 28. Rc2 {[%clk 0:00:14.8]} 28... Rab8 {[%clk 0:02:06.5]} 29. Rac1
{[%clk 0:00:14.2]} 29... a6 {[%clk 0:02:06.5]} 30. b3 {[%clk 0:00:13.9]} 30...
Qa3 {[%clk 0:02:01.8]} 31. b4 {[%clk 0:00:08.8]} 31... Qb3 {[%clk 0:02:01.3]}
32. Kh2 {[%clk 0:00:08.3]} 32... Qd5 {[%clk 0:02:00.4]} 33. g4 {[%clk
0:00:07.6]} 33... Qd6 {[%clk 0:01:56.7]} 34. Rg2 {[%clk 0:00:06.9]} 34... Rb7
{[%clk 0:01:45.7]} 35. Kh1 {[%clk 0:00:04.9]} 35... Rbc7 {[%clk 0:01:44.7]} 36.
gxf5 {[%clk 0:00:04.6]} 36... exf5 {[%clk 0:01:45.2]} 37. Rcg1 {[%clk
0:00:04.8]} 37... Qf6 {[%clk 0:01:40.3]} 38. Rg6 {[%clk 0:00:01.5]} 38... Qxg6
{[%clk 0:01:39.4]} 39. Rxg6 {[%clk 0:00:02]} 39... Kxg6 {[%clk 0:01:40.3]} 40.
Qg3+ {[%clk 0:00:01.8]} 40... Kh7 {[%clk 0:01:40.2]} 41. Qh4 {[%clk 0:00:02]}
41... Rxc3 {[%clk 0:01:39.8]} 42. Qh5 {[%clk 0:00:02.4]} 42... Rc1+ {[%clk
0:01:37.6]} 43. Kg2 {[%clk 0:00:02.6]} 43... R8c2+ {[%clk 0:01:35]} 44. Kg3
{[%clk 0:00:02.9]} 44... Rg1+ {[%clk 0:01:34.9]} 45. Kh4 {[%clk 0:00:03]} 45...
g6 {[%clk 0:01:34.7]} 0-1

[Event "*** SCC Grand Prix: Titled Tuesday Blitz"]
[Site "Chess.com"]
[Date "2020.07.14"]
[Round "10"]
[White "artichaud"]
[Black "tan275"]
[Result "1-0"]
[WhiteElo "2087"]
[BlackElo "2245"]
[TimeControl "180+1"]
[EndTime "11:57:43 PDT"]
[Termination "artichaud won by resignation"]

1. e4 {[%clk 0:03:00]} 1... c6 {[%clk 0:02:59.2]} 2. d4 {[%clk 0:02:59.4]} 2...
d5 {[%clk 0:02:59.7]} 3. Nd2 {[%clk 0:03:00]} 3... dxe4 {[%clk 0:02:58.9]} 4.
Nxe4 {[%clk 0:03:00.9]} 4... Bf5 {[%clk 0:02:59.3]} 5. Ng3 {[%clk 0:03:00.5]}
5... Bg6 {[%clk 0:02:59.6]} 6. f4 {[%clk 0:03:01]} 6... e6 {[%clk 0:02:53.4]} 7.
h4 {[%clk 0:02:57.1]} 7... h6 {[%clk 0:02:43.7]} 8. Nf3 {[%clk 0:02:55.8]} 8...
Bd6 {[%clk 0:02:31.1]} 9. h5 {[%clk 0:02:42.5]} 9... Bh7 {[%clk 0:02:29.9]} 10.
Bd3 {[%clk 0:02:43]} 10... Bxd3 {[%clk 0:02:29.2]} 11. Qxd3 {[%clk 0:02:43.9]}
11... Nf6 {[%clk 0:02:24.6]} 12. Ne4 {[%clk 0:02:40]} 12... Nxe4 {[%clk
0:02:16.8]} 13. Qxe4 {[%clk 0:02:40.9]} 13... O-O {[%clk 0:02:12.6]} 14. Bd2
{[%clk 0:02:39.8]} 14... Na6 {[%clk 0:02:08.2]} 15. O-O-O {[%clk 0:02:37.4]}
15... Nb4 {[%clk 0:02:07.5]} 16. Kb1 {[%clk 0:02:28.9]} 16... b5 {[%clk
0:02:00.5]} 17. g4 {[%clk 0:02:25.6]} 17... Nd5 {[%clk 0:01:42.5]} 18. g5 {[%clk
0:02:25]} 18... hxg5 {[%clk 0:01:28.5]} 19. fxg5 {[%clk 0:02:15.1]} 19... b4
{[%clk 0:01:14.5]} 20. g6 {[%clk 0:02:09.2]} 20... Rb8 {[%clk 0:00:56.9]} 21. h6
{[%clk 0:01:23]} 21... Nc3+ {[%clk 0:00:15.6]} 22. Bxc3 {[%clk 0:01:22.2]} 22...
bxc3 {[%clk 0:00:15]} 23. b3 {[%clk 0:01:22]} 23... Qa5 {[%clk 0:00:13.8]} 24.
hxg7 {[%clk 0:01:06.1]} 24... Qf5 {[%clk 0:00:06.4]} 25. gxf8=Q+ {[%clk
0:01:03.6]} 25... Kxf8 {[%clk 0:00:04.5]} 26. Qxf5 {[%clk 0:01:02.5]} 26... exf5
{[%clk 0:00:04.9]} 27. Rh8+ {[%clk 0:01:01.8]} 27... Kg7 {[%clk 0:00:04.8]} 28.
Rxb8 {[%clk 0:01:01.4]} 28... Bxb8 {[%clk 0:00:05.7]} 29. gxf7 {[%clk
0:01:01.2]} 29... Kxf7 {[%clk 0:00:05.9]} 30. Rd3 {[%clk 0:01:00.8]} 1-0

[Event "*** SCC Grand Prix: Titled Tuesday Blitz"]
[Site "Chess.com"]
[Date "2020.07.14"]
[Round "10"]
[White "yuliagok"]
[Black "KratosKrieg"]
[Result "1-0"]
[WhiteElo "2090"]
[BlackElo "1951"]
[TimeControl "180+1"]
[EndTime "11:57:45 PDT"]
[Termination "yuliagok won by checkmate"]

1. d4 {[%clk 0:03:00.9]} 1... d5 {[%clk 0:02:59.4]} 2. c4 {[%clk 0:03:00.1]}
2... e6 {[%clk 0:02:59.7]} 3. Nc3 {[%clk 0:02:59.1]} 3... Nf6 {[%clk 0:02:59.9]}
4. Nf3 {[%clk 0:02:58.1]} 4... Be7 {[%clk 0:03:00.2]} 5. Bf4 {[%clk 0:02:57.2]}
5... O-O {[%clk 0:03:00.6]} 6. e3 {[%clk 0:02:56.7]} 6... b6 {[%clk 0:03:00.7]}
7. cxd5 {[%clk 0:02:55]} 7... Nxd5 {[%clk 0:02:59.7]} 8. Nxd5 {[%clk 0:02:54.1]}
8... Qxd5 {[%clk 0:02:53.5]} 9. a3 {[%clk 0:02:52.8]} 9... c5 {[%clk 0:02:53]}
10. Rc1 {[%clk 0:02:46.5]} 10... Bb7 {[%clk 0:02:47.4]} 11. Be2 {[%clk 0:02:38]}
11... Nd7 {[%clk 0:02:42]} 12. O-O {[%clk 0:02:34.9]} 12... Rfd8 {[%clk
0:02:30.7]} 13. dxc5 {[%clk 0:02:33.1]} 13... Bxc5 {[%clk 0:02:15.2]} 14. Qxd5
{[%clk 0:02:31]} 14... Bxd5 {[%clk 0:02:16.1]} 15. Bc4 {[%clk 0:02:28.4]} 15...
Nf6 {[%clk 0:02:07.8]} 16. Bxd5 {[%clk 0:02:26.4]} 16... Rxd5 {[%clk 0:02:03.7]}
17. b4 {[%clk 0:02:25.3]} 17... Bd6 {[%clk 0:01:52.2]} 18. Bxd6 {[%clk
0:02:22.9]} 18... Rxd6 {[%clk 0:01:53.1]} 19. Ne5 {[%clk 0:02:21.2]} 19... Rad8
{[%clk 0:01:47.6]} 20. f4 {[%clk 0:02:12.7]} 20... Nd5 {[%clk 0:01:38.4]} 21.
Rfe1 {[%clk 0:02:09.5]} 21... Nf6 {[%clk 0:01:27.4]} 22. Rc7 {[%clk 0:02:06.5]}
22... a5 {[%clk 0:01:20.8]} 23. Nxf7 {[%clk 0:02:02]} 23... Rd1 {[%clk
0:01:18.5]} 24. Nxd8 {[%clk 0:01:57.1]} 24... Rxe1+ {[%clk 0:01:17.7]} 25. Kf2
{[%clk 0:01:56.1]} 25... Ra1 {[%clk 0:01:17.6]} 26. Nxe6 {[%clk 0:01:54]} 26...
Ne8 {[%clk 0:01:11.4]} 27. Re7 {[%clk 0:01:50.3]} 27... Ra2+ {[%clk 0:01:03.3]}
28. Kf3 {[%clk 0:01:48.6]} 28... Nd6 {[%clk 0:00:53]} 29. Rxg7+ {[%clk
0:01:46.6]} 29... Kh8 {[%clk 0:00:52.9]} 30. Rd7 {[%clk 0:01:45.6]} 30... Kg8
{[%clk 0:00:40.4]} 31. Rxd6 {[%clk 0:01:43.5]} 31... Kf7 {[%clk 0:00:32.5]} 32.
Ng5+ {[%clk 0:01:41.5]} 32... Ke7 {[%clk 0:00:32.5]} 33. Rxb6 {[%clk 0:01:38.9]}
33... Rxa3 {[%clk 0:00:33]} 34. bxa5 {[%clk 0:01:37.9]} 34... Rxa5 {[%clk
0:00:33.9]} 35. Nxh7 {[%clk 0:01:36.3]} 35... Ra1 {[%clk 0:00:31.8]} 36. h4
{[%clk 0:01:33.7]} 36... Kf7 {[%clk 0:00:30.5]} 37. h5 {[%clk 0:01:32.3]} 37...
Kg7 {[%clk 0:00:30.6]} 38. Ng5 {[%clk 0:01:31.6]} 38... Rf1+ {[%clk 0:00:29.7]}
39. Kg4 {[%clk 0:01:30.5]} 39... Rg1 {[%clk 0:00:30.3]} 40. g3 {[%clk
0:01:29.7]} 40... Rb1 {[%clk 0:00:30.8]} 41. h6+ {[%clk 0:01:27.8]} 41... Kg8
{[%clk 0:00:30.5]} 42. h7+ {[%clk 0:01:27.2]} 42... Kh8 {[%clk 0:00:30.6]} 43.
Rxb1 {[%clk 0:01:25.5]} 43... Kg7 {[%clk 0:00:28.6]} 44. Rb7+ {[%clk 0:01:24.4]}
44... Kh8 {[%clk 0:00:29]} 45. Rb8+ {[%clk 0:01:22.8]} 45... Kg7 {[%clk
0:00:29.3]} 46. h8=Q+ {[%clk 0:01:22.4]} 46... Kg6 {[%clk 0:00:28.2]} 47. Rb6#
{[%clk 0:01:19.9]} 1-0